[Event "Early-Titled-Tuesday-Blitz-June-18-2024"]
[Site "Chess.com"]
[Date "2024.06.18"]
[Round "3"]
[White "rupeshjswl7"]
[Black "chess94cu"]
[Result "0-1"]
[WhiteElo "2373"]
[BlackElo "2621"]
[TimeControl "180+1"]
[EndTime "8:30:00 PDT"]
[Termination "chess94cu won by checkmate"]

1. e4 {[%clk 0:03:00.8]} 1... Nf6 {[%clk 0:02:57.1]} 2. Qe2 {[%clk 0:02:58.9]}
2... e5 {[%clk 0:02:54.4]} 3. g3 {[%clk 0:02:53.8]} 3... Nc6 {[%clk 0:02:54.7]}
4. c3 {[%clk 0:02:52.3]} 4... g6 {[%clk 0:02:52.5]} 5. Bg2 {[%clk 0:02:51.2]}
5... Bg7 {[%clk 0:02:52.5]} 6. Nf3 {[%clk 0:02:51.2]} 6... O-O {[%clk
0:02:52.9]} 7. O-O {[%clk 0:02:51.6]} 7... d5 {[%clk 0:02:52.2]} 8. d3 {[%clk
0:02:45.4]} 8... a5 {[%clk 0:02:50]} 9. h3 {[%clk 0:02:43.9]} 9... Re8 {[%clk
0:02:49.3]} 10. Rd1 {[%clk 0:02:39.9]} 10... h6 {[%clk 0:02:45.5]} 11. Na3
{[%clk 0:02:37.7]} 11... b6 {[%clk 0:02:35.5]} 12. Nb5 {[%clk 0:02:05.7]} 12...
a4 {[%clk 0:02:28.1]} 13. c4 {[%clk 0:02:00.7]} 13... d4 {[%clk 0:02:23.4]} 14.
Rb1 {[%clk 0:01:49.3]} 14... Nb4 {[%clk 0:02:14.8]} 15. b3 {[%clk 0:01:33]}
15... axb3 {[%clk 0:02:03]} 16. axb3 {[%clk 0:01:30.2]} 16... c6 {[%clk
0:01:58.5]} 17. Na3 {[%clk 0:01:09.3]} 17... Bf8 {[%clk 0:01:56.4]} 18. Nc2
{[%clk 0:00:51.7]} 18... Na2 {[%clk 0:01:31.3]} 19. Bd2 {[%clk 0:00:45.1]} 19...
Bb7 {[%clk 0:01:24.2]} 20. Qe1 {[%clk 0:00:24.3]} 20... Nd7 {[%clk 0:01:20]} 21.
Nb4 {[%clk 0:00:23.9]} 21... Qe7 {[%clk 0:01:11.7]} 22. Nxa2 {[%clk 0:00:22.3]}
22... Rxa2 {[%clk 0:01:12.6]} 23. Ra1 {[%clk 0:00:21.4]} 23... Rea8 {[%clk
0:01:12]} 24. Rxa2 {[%clk 0:00:21.2]} 24... Rxa2 {[%clk 0:01:12.9]} 25. b4
{[%clk 0:00:20]} 25... b5 {[%clk 0:00:58.4]} 26. Ra1 {[%clk 0:00:18.2]} 26...
Rxa1 {[%clk 0:00:52]} 27. Qxa1 {[%clk 0:00:19.1]} 27... bxc4 {[%clk 0:00:51.1]}
28. dxc4 {[%clk 0:00:20]} 28... c5 {[%clk 0:00:51.7]} 29. bxc5 {[%clk
0:00:15.7]} 29... Nxc5 {[%clk 0:00:48.7]} 30. Ne1 {[%clk 0:00:15.9]} 30... Bxe4
{[%clk 0:00:45.8]} 31. Bxe4 {[%clk 0:00:14.6]} 31... Nxe4 {[%clk 0:00:46.7]} 32.
Bc1 {[%clk 0:00:13.7]} 32... Qb4 {[%clk 0:00:36.7]} 33. Nf3 {[%clk 0:00:12]}
33... Qxc4 {[%clk 0:00:35.5]} 34. Nxe5 {[%clk 0:00:10.7]} 34... Qd5 {[%clk
0:00:27.9]} 35. Nd3 {[%clk 0:00:10.2]} 35... Nc3 {[%clk 0:00:26.2]} 36. Qb2
{[%clk 0:00:09.1]} 36... Qf3 {[%clk 0:00:21.8]} 37. Qd2 {[%clk 0:00:07.3]} 37...
Ne2+ {[%clk 0:00:14]} 38. Kf1 {[%clk 0:00:07.2]} 38... Nxg3+ {[%clk 0:00:13.7]}
39. Kg1 {[%clk 0:00:06.4]} 39... Qh1# {[%clk 0:00:14.2]} 0-1

[Event "Early-Titled-Tuesday-Blitz-June-18-2024"]
[Site "Chess.com"]
[Date "2024.06.18"]
[Round "3"]
[White "sammartin99"]
[Black "FARIZA2018"]
[Result "0-1"]
[WhiteElo "2345"]
[BlackElo "2599"]
[TimeControl "180+1"]
[EndTime "8:30:02 PDT"]
[Termination "FARIZA2018 won on time"]

1. d4 {[%clk 0:02:58.2]} 1... Nf6 {[%clk 0:03:00.1]} 2. c4 {[%clk 0:02:57.2]}
2... e6 {[%clk 0:03:00.5]} 3. Nc3 {[%clk 0:02:55.7]} 3... d5 {[%clk 0:03:00.9]}
4. cxd5 {[%clk 0:02:54.7]} 4... exd5 {[%clk 0:03:01.2]} 5. Bg5 {[%clk
0:02:54.1]} 5... Be7 {[%clk 0:03:01.6]} 6. e3 {[%clk 0:02:53.5]} 6... h6 {[%clk
0:03:00.2]} 7. Bf4 {[%clk 0:02:49.5]} 7... O-O {[%clk 0:02:55.1]} 8. Bd3 {[%clk
0:02:48.7]} 8... c6 {[%clk 0:02:46.5]} 9. h3 {[%clk 0:02:45.8]} 9... Re8 {[%clk
0:02:45.1]} 10. Nf3 {[%clk 0:02:40.5]} 10... Nbd7 {[%clk 0:02:35.3]} 11. O-O
{[%clk 0:02:35.3]} 11... Nf8 {[%clk 0:02:28.2]} 12. Rb1 {[%clk 0:02:28.9]} 12...
a5 {[%clk 0:02:26.8]} 13. a3 {[%clk 0:02:27.2]} 13... Bd6 {[%clk 0:02:13.1]} 14.
Ne5 {[%clk 0:02:08.1]} 14... Qe7 {[%clk 0:01:59.6]} 15. Qf3 {[%clk 0:01:43.9]}
15... Ne6 {[%clk 0:01:50]} 16. Bh2 {[%clk 0:01:40.4]} 16... Ng5 {[%clk 0:01:50]}
17. Qe2 {[%clk 0:01:18.6]} 17... Nge4 {[%clk 0:01:47.1]} 18. Nxe4 {[%clk
0:01:01.1]} 18... dxe4 {[%clk 0:01:45.7]} 19. Bc4 {[%clk 0:00:57.5]} 19... Be6
{[%clk 0:01:45.6]} 20. Rfc1 {[%clk 0:00:51.8]} 20... Rad8 {[%clk 0:01:29.1]} 21.
Qc2 {[%clk 0:00:43.6]} 21... Bxc4 {[%clk 0:01:26.7]} 22. Qxc4 {[%clk 0:00:40.6]}
22... Nd5 {[%clk 0:01:19.3]} 23. Qa4 {[%clk 0:00:29.5]} 23... Bc7 {[%clk
0:01:03.6]} 24. b4 {[%clk 0:00:22.7]} 24... axb4 {[%clk 0:01:03.6]} 25. axb4
{[%clk 0:00:23.5]} 25... Ra8 {[%clk 0:00:54.5]} 26. Qb3 {[%clk 0:00:22.8]} 26...
Bxe5 {[%clk 0:00:29.3]} 27. Bxe5 {[%clk 0:00:20.2]} 27... Qe6 {[%clk 0:00:19]}
28. b5 {[%clk 0:00:16]} 28... Rec8 {[%clk 0:00:18.5]} 29. bxc6 {[%clk
0:00:15.5]} 29... bxc6 {[%clk 0:00:17.8]} 30. Rc5 {[%clk 0:00:10.4]} 30... Kh7
{[%clk 0:00:10.7]} 31. Qc2 {[%clk 0:00:10.1]} 31... Qg6 {[%clk 0:00:08.9]} 32.
Rc1 {[%clk 0:00:08.9]} 32... Ra6 {[%clk 0:00:08.4]} 33. Qe2 {[%clk 0:00:07.2]}
33... Rca8 {[%clk 0:00:06.9]} 34. Qg4 {[%clk 0:00:02.7]} 34... Qxg4 {[%clk
0:00:04.4]} 35. hxg4 {[%clk 0:00:03.6]} 35... f6 {[%clk 0:00:03.8]} 36. Bg3
{[%clk 0:00:01.4]} 36... Nb4 {[%clk 0:00:04.2]} 37. R5c4 {[%clk 0:00:01.1]}
37... Rb6 {[%clk 0:00:02.9]} 0-1

[Event "Early-Titled-Tuesday-Blitz-June-18-2024"]
[Site "Chess.com"]
[Date "2024.06.18"]
[Round "3"]
[White "UK_23"]
[Black "SuperGPatzer"]
[Result "1/2-1/2"]
[WhiteElo "2390"]
[BlackElo "2094"]
[TimeControl "180+1"]
[EndTime "8:30:02 PDT"]
[Termination "Game drawn by repetition"]

1. e4 {[%clk 0:03:00.9]} 1... g5 {[%clk 0:02:59.3]} 2. d4 {[%clk 0:03:00.3]}
2... h6 {[%clk 0:02:59.1]} 3. Nc3 {[%clk 0:03:00.1]} 3... d6 {[%clk 0:02:58.8]}
4. Be3 {[%clk 0:02:59.5]} 4... Nf6 {[%clk 0:02:57.2]} 5. f3 {[%clk 0:02:58.1]}
5... Nc6 {[%clk 0:02:52.7]} 6. Qd2 {[%clk 0:02:57.8]} 6... e5 {[%clk 0:02:52.4]}
7. Nge2 {[%clk 0:02:56.6]} 7... exd4 {[%clk 0:02:47.4]} 8. Nxd4 {[%clk
0:02:56.7]} 8... Bg7 {[%clk 0:02:47.1]} 9. O-O-O {[%clk 0:02:55.7]} 9... Bd7
{[%clk 0:02:39.8]} 10. Kb1 {[%clk 0:02:55]} 10... a6 {[%clk 0:02:39.3]} 11. h4
{[%clk 0:02:53.1]} 11... g4 {[%clk 0:02:34.4]} 12. h5 {[%clk 0:02:48.7]} 12...
b5 {[%clk 0:02:31.6]} 13. Qf2 {[%clk 0:02:30.5]} 13... b4 {[%clk 0:02:23]} 14.
Nd5 {[%clk 0:02:18.1]} 14... gxf3 {[%clk 0:02:02.1]} 15. gxf3 {[%clk 0:02:15.7]}
15... Nxd5 {[%clk 0:01:59.1]} 16. exd5 {[%clk 0:02:14.9]} 16... Ne5 {[%clk
0:01:59.2]} 17. Rg1 {[%clk 0:02:02]} 17... Qf6 {[%clk 0:01:44]} 18. Bc1 {[%clk
0:01:58.2]} 18... O-O {[%clk 0:01:09.5]} 19. Be2 {[%clk 0:01:30.4]} 19... Kh8
{[%clk 0:01:08.6]} 20. f4 {[%clk 0:01:30]} 20... c5 {[%clk 0:01:01.4]} 21. dxc6
{[%clk 0:01:27.9]} 21... Nxc6 {[%clk 0:01:00.7]} 22. Nxc6 {[%clk 0:01:04.3]}
22... Bxc6 {[%clk 0:01:01.6]} 23. Bd3 {[%clk 0:01:01]} 23... a5 {[%clk
0:00:52.8]} 24. Rg3 {[%clk 0:00:58.4]} 24... a4 {[%clk 0:00:43.5]} 25. Rdg1
{[%clk 0:00:58.8]} 25... Rg8 {[%clk 0:00:41.5]} 26. Qb6 {[%clk 0:00:58.1]} 26...
Bd5 {[%clk 0:00:21.4]} 27. Rg6 {[%clk 0:00:25.4]} 27... fxg6 {[%clk 0:00:18.5]}
28. Rxg6 {[%clk 0:00:26.3]} 28... Qd4 {[%clk 0:00:14.1]} 29. Qxd6 {[%clk
0:00:23]} 29... Bxa2+ {[%clk 0:00:13.6]} 30. Kxa2 {[%clk 0:00:23.9]} 30... Qxd6
{[%clk 0:00:13.8]} 31. Rxd6 {[%clk 0:00:24.5]} 31... b3+ {[%clk 0:00:14.5]} 32.
cxb3 {[%clk 0:00:20.6]} 32... axb3+ {[%clk 0:00:15.4]} 33. Kxb3 {[%clk
0:00:21.5]} 33... Rgb8+ {[%clk 0:00:14.5]} 34. Kc2 {[%clk 0:00:21.6]} 34... Ra2
{[%clk 0:00:13.4]} 35. Rd7 {[%clk 0:00:17.4]} 35... Bxb2 {[%clk 0:00:12]} 36.
Bc4 {[%clk 0:00:16.7]} 36... Ra4 {[%clk 0:00:08.1]} 37. Bxb2+ {[%clk 0:00:14.8]}
37... Rxb2+ {[%clk 0:00:07.3]} 38. Kxb2 {[%clk 0:00:15.7]} 38... Rxc4 {[%clk
0:00:07.6]} 39. Rf7 {[%clk 0:00:16.2]} 39... Kg8 {[%clk 0:00:06.9]} 40. Rf6
{[%clk 0:00:15.9]} 40... Kg7 {[%clk 0:00:07.3]} 41. Rg6+ {[%clk 0:00:16.2]}
41... Kh7 {[%clk 0:00:07.1]} 42. f5 {[%clk 0:00:17.1]} 42... Rc5 {[%clk
0:00:04.7]} 43. Rf6 {[%clk 0:00:17.6]} 43... Kg7 {[%clk 0:00:04.1]} 44. Rg6+
{[%clk 0:00:18.5]} 44... Kh7 {[%clk 0:00:04.4]} 45. f6 {[%clk 0:00:18.4]} 45...
Rxh5 {[%clk 0:00:03.9]} 46. Rg7+ {[%clk 0:00:19]} 46... Kh8 {[%clk 0:00:03.9]}
47. Kc3 {[%clk 0:00:19]} 47... Re5 {[%clk 0:00:04.1]} 48. Kd4 {[%clk 0:00:18.6]}
48... Rf5 {[%clk 0:00:04.4]} 49. Rf7 {[%clk 0:00:18.7]} 49... Kg8 {[%clk
0:00:04.2]} 50. Rg7+ {[%clk 0:00:19.2]} 50... Kh8 {[%clk 0:00:04.7]} 51. Rg6
{[%clk 0:00:19.7]} 51... Kh7 {[%clk 0:00:04.6]} 52. Rg7+ {[%clk 0:00:19.9]}
52... Kh8 {[%clk 0:00:05.1]} 1/2-1/2

[Event "Early-Titled-Tuesday-Blitz-June-18-2024"]
[Site "Chess.com"]
[Date "2024.06.18"]
[Round "3"]
[White "Losingexperience"]
[Black "jcibarra"]
[Result "0-1"]
[WhiteElo "2765"]
[BlackElo "3007"]
[TimeControl "180+1"]
[EndTime "8:30:04 PDT"]
[Termination "jcibarra won by resignation"]

1. e4 {[%clk 0:03:00.9]} 1... c5 {[%clk 0:02:58.6]} 2. Nf3 {[%clk 0:03:00.2]}
2... Nc6 {[%clk 0:02:55.8]} 3. Bb5 {[%clk 0:02:59.4]} 3... e6 {[%clk 0:02:56]}
4. O-O {[%clk 0:02:57.2]} 4... Nd4 {[%clk 0:02:56.2]} 5. Nxd4 {[%clk 0:02:53.3]}
5... cxd4 {[%clk 0:02:57.1]} 6. c3 {[%clk 0:02:52.8]} 6... a6 {[%clk 0:02:56.9]}
7. Be2 {[%clk 0:02:52.7]} 7... Bc5 {[%clk 0:02:57.6]} 8. b4 {[%clk 0:02:47.9]}
8... Ba7 {[%clk 0:02:56.7]} 9. Bb2 {[%clk 0:02:48]} 9... Ne7 {[%clk 0:02:56.8]}
10. d3 {[%clk 0:02:42.8]} 10... d5 {[%clk 0:02:39.5]} 11. cxd4 {[%clk
0:02:38.2]} 11... Nc6 {[%clk 0:02:31.2]} 12. Nd2 {[%clk 0:02:35.6]} 12... Bxd4
{[%clk 0:02:24]} 13. Qb3 {[%clk 0:02:27.6]} 13... Qf6 {[%clk 0:02:14.2]} 14.
Rab1 {[%clk 0:02:17.3]} 14... O-O {[%clk 0:01:54.6]} 15. Nf3 {[%clk 0:02:11.9]}
15... Bxb2 {[%clk 0:01:55.1]} 16. Qxb2 {[%clk 0:02:07.2]} 16... Qxb2 {[%clk
0:01:36.1]} 17. Rxb2 {[%clk 0:02:08.1]} 17... Rd8 {[%clk 0:01:36.3]} 18. a4
{[%clk 0:01:57.6]} 18... a5 {[%clk 0:01:31.6]} 19. b5 {[%clk 0:01:51.8]} 19...
Nb4 {[%clk 0:01:31.1]} 20. e5 {[%clk 0:01:45.7]} 20... Bd7 {[%clk 0:01:26.4]}
21. Nd4 {[%clk 0:01:45]} 21... Rdc8 {[%clk 0:01:24.3]} 22. f4 {[%clk 0:01:36.1]}
22... Rc3 {[%clk 0:01:22.6]} 23. Rb3 {[%clk 0:01:36.1]} 23... Rac8 {[%clk
0:01:19.4]} 24. Kf2 {[%clk 0:01:29.6]} 24... b6 {[%clk 0:01:13.6]} 25. Rfb1
{[%clk 0:01:23.9]} 25... Rxb3 {[%clk 0:01:09]} 26. Rxb3 {[%clk 0:01:23.2]} 26...
Rc1 {[%clk 0:01:09.6]} 27. Ke3 {[%clk 0:01:19.5]} 27... Kf8 {[%clk 0:01:07.5]}
28. Kd2 {[%clk 0:01:17.3]} 28... Ra1 {[%clk 0:01:03.5]} 29. Rc3 {[%clk
0:01:16.6]} 29... Rxa4 {[%clk 0:01:01.2]} 30. Rc7 {[%clk 0:01:16]} 30... Ra2+
{[%clk 0:00:59.3]} 31. Ke3 {[%clk 0:01:14.6]} 31... Ke8 {[%clk 0:00:41]} 32. g4
{[%clk 0:01:07.5]} 32... Kd8 {[%clk 0:00:30.8]} 33. Rb7 {[%clk 0:01:07.3]} 33...
Nc2+ {[%clk 0:00:24.4]} 34. Nxc2 {[%clk 0:01:07]} 34... Rxc2 {[%clk 0:00:25.3]}
35. Rxb6 {[%clk 0:01:06.8]} 35... Rb2 {[%clk 0:00:25.6]} 36. d4 {[%clk 0:01:00]}
36... a4 {[%clk 0:00:22.9]} 37. Ra6 {[%clk 0:00:58]} 37... Rxe2+ {[%clk
0:00:13]} 38. Kf3 {[%clk 0:00:56.3]} 38... Bxb5 {[%clk 0:00:08.4]} 39. Ra7
{[%clk 0:00:55]} 39... Rxh2 {[%clk 0:00:06.9]} 40. Rxf7 {[%clk 0:00:54.6]} 40...
a3 {[%clk 0:00:07.5]} 41. Ra7 {[%clk 0:00:54.5]} 41... a2 {[%clk 0:00:07.6]} 42.
f5 {[%clk 0:00:54.8]} 42... Bc4 {[%clk 0:00:04]} 43. f6 {[%clk 0:00:54]} 43...
gxf6 {[%clk 0:00:03.5]} 44. exf6 {[%clk 0:00:54.1]} 44... Rh1 {[%clk 0:00:04.2]}
45. f7 {[%clk 0:00:52.7]} 45... Rf1+ {[%clk 0:00:04.4]} 46. Kg3 {[%clk 0:00:51]}
46... Rxf7 {[%clk 0:00:05]} 47. Ra8+ {[%clk 0:00:51.9]} 47... Ke7 {[%clk
0:00:05.1]} 48. g5 {[%clk 0:00:52.8]} 48... Rf1 {[%clk 0:00:04.7]} 49. Ra7+
{[%clk 0:00:53]} 49... Kf8 {[%clk 0:00:04.7]} 50. Kg4 {[%clk 0:00:53.9]} 50...
a1=Q {[%clk 0:00:04.5]} 51. Rb7 {[%clk 0:00:52.4]} 51... Qd1+ {[%clk 0:00:04.3]}
52. Kg3 {[%clk 0:00:51.9]} 52... Rg1+ {[%clk 0:00:04.8]} 53. Kh2 {[%clk
0:00:52.7]} 53... Rh1+ {[%clk 0:00:04.7]} 54. Kg3 {[%clk 0:00:52.5]} 54... Qg1+
{[%clk 0:00:05]} 55. Kf4 {[%clk 0:00:51.6]} 55... Qxd4+ {[%clk 0:00:05.5]} 56.
Kf3 {[%clk 0:00:51.7]} 56... Rf1+ {[%clk 0:00:05.1]} 57. Kg3 {[%clk 0:00:51.8]}
57... Qf4+ {[%clk 0:00:05.2]} 0-1

[Event "Early-Titled-Tuesday-Blitz-June-18-2024"]
[Site "Chess.com"]
[Date "2024.06.18"]
[Round "3"]
[White "InitiatingASC"]
[Black "jens1102"]
[Result "0-1"]
[WhiteElo "2440"]
[BlackElo "2650"]
[TimeControl "180+1"]
[EndTime "8:30:05 PDT"]
[Termination "jens1102 won by resignation"]

1. d4 {[%clk 0:03:00.9]} 1... Nf6 {[%clk 0:02:59.2]} 2. c4 {[%clk 0:03:00.9]}
2... b6 {[%clk 0:03:00.1]} 3. Nc3 {[%clk 0:03:00.8]} 3... Bb7 {[%clk 0:03:01]}
4. Bg5 {[%clk 0:02:58.7]} 4... h6 {[%clk 0:02:48.9]} 5. Bxf6 {[%clk 0:02:57.4]}
5... exf6 {[%clk 0:02:49.8]} 6. e3 {[%clk 0:02:56.6]} 6... Bb4 {[%clk
0:02:48.8]} 7. Qb3 {[%clk 0:02:53]} 7... a5 {[%clk 0:02:46.6]} 8. Nf3 {[%clk
0:02:53]} 8... O-O {[%clk 0:02:45.9]} 9. Be2 {[%clk 0:02:52.9]} 9... d5 {[%clk
0:02:45.8]} 10. O-O {[%clk 0:02:47.9]} 10... dxc4 {[%clk 0:02:46.1]} 11. Bxc4
{[%clk 0:02:44.6]} 11... f5 {[%clk 0:02:38]} 12. Ne2 {[%clk 0:02:43.9]} 12...
Nd7 {[%clk 0:02:30.7]} 13. Ng3 {[%clk 0:02:35.5]} 13... f4 {[%clk 0:02:26.7]}
14. exf4 {[%clk 0:02:31.1]} 14... Nf6 {[%clk 0:02:20.1]} 15. Ne5 {[%clk
0:02:25.1]} 15... Nd5 {[%clk 0:02:14.8]} 16. f5 {[%clk 0:02:14.8]} 16... a4
{[%clk 0:02:10.6]} 17. Qd3 {[%clk 0:02:06.7]} 17... Nf4 {[%clk 0:02:04.4]} 18.
Qd1 {[%clk 0:02:00.6]} 18... Bxg2 {[%clk 0:02:01.5]} 19. Qg4 {[%clk 0:01:20.6]}
19... Bxf1 {[%clk 0:01:36.4]} 20. Rxf1 {[%clk 0:01:18.8]} 20... Qg5 {[%clk
0:01:35.8]} 21. Qxg5 {[%clk 0:01:03.9]} 21... hxg5 {[%clk 0:01:36.7]} 22. Ne4
{[%clk 0:01:04.6]} 22... Bd6 {[%clk 0:01:14.8]} 23. Nxg5 {[%clk 0:00:50.2]}
23... Bxe5 {[%clk 0:01:12.9]} 24. dxe5 {[%clk 0:00:50.7]} 24... Ra5 {[%clk
0:01:12.3]} 25. Re1 {[%clk 0:00:44.4]} 25... Rc5 {[%clk 0:01:03.1]} 26. b3
{[%clk 0:00:41.6]} 26... b5 {[%clk 0:01:03.3]} 27. Bf1 {[%clk 0:00:39.4]} 27...
Re8 {[%clk 0:01:03.6]} 28. Nf3 {[%clk 0:00:36.9]} 28... c6 {[%clk 0:00:44]} 29.
bxa4 {[%clk 0:00:36.6]} 29... bxa4 {[%clk 0:00:43]} 30. Re4 {[%clk 0:00:37.3]}
30... Nd5 {[%clk 0:00:31]} 31. Rxa4 {[%clk 0:00:37.4]} 31... Nc3 {[%clk
0:00:31]} 32. Rc4 {[%clk 0:00:35.2]} 32... Rxc4 {[%clk 0:00:25.6]} 33. Bxc4
{[%clk 0:00:36.1]} 33... Ra8 {[%clk 0:00:25.2]} 34. Ng5 {[%clk 0:00:35.1]} 34...
Nxa2 {[%clk 0:00:25.4]} 35. Nxf7 {[%clk 0:00:34]} 35... Nc3 {[%clk 0:00:24.4]}
36. e6 {[%clk 0:00:31.8]} 36... Kf8 {[%clk 0:00:21.3]} 37. Ne5 {[%clk
0:00:30.6]} 37... Ke7 {[%clk 0:00:18.4]} 38. Nxc6+ {[%clk 0:00:30.4]} 38... Kf6
{[%clk 0:00:19.1]} 39. e7 {[%clk 0:00:26.8]} 39... Ne4 {[%clk 0:00:18]} 40. Bd5
{[%clk 0:00:26]} 40... Nd6 {[%clk 0:00:17.9]} 41. Be6 {[%clk 0:00:24.4]} 41...
Ra1+ {[%clk 0:00:17.5]} 42. Kg2 {[%clk 0:00:24]} 42... Rc1 {[%clk 0:00:17.4]}
43. Nb8 {[%clk 0:00:20.5]} 43... Kxe7 {[%clk 0:00:17.5]} 44. Nd7 {[%clk
0:00:20.8]} 44... Rc7 {[%clk 0:00:16.8]} 45. Ne5 {[%clk 0:00:21.1]} 45... Rc5
{[%clk 0:00:16.2]} 46. Ng6+ {[%clk 0:00:21.2]} 46... Kf6 {[%clk 0:00:16.8]} 47.
Nh4 {[%clk 0:00:20.2]} 47... Re5 {[%clk 0:00:16.2]} 48. Bd7 {[%clk 0:00:19.9]}
48... Re4 {[%clk 0:00:16.5]} 49. Kg3 {[%clk 0:00:19.6]} 49... Rd4 {[%clk
0:00:15.8]} 50. Be6 {[%clk 0:00:19.3]} 50... Ne4+ {[%clk 0:00:15.9]} 51. Kf3
{[%clk 0:00:17.9]} 51... Ng5+ {[%clk 0:00:16.4]} 52. Ke3 {[%clk 0:00:17.8]}
52... Rxh4 {[%clk 0:00:16.6]} 0-1

[Event "Early-Titled-Tuesday-Blitz-June-18-2024"]
[Site "Chess.com"]
[Date "2024.06.18"]
[Round "3"]
[White "Dreamer_01"]
[Black "profedechess93"]
[Result "0-1"]
[WhiteElo "2385"]
[BlackElo "2604"]
[TimeControl "180+1"]
[EndTime "8:30:09 PDT"]
[Termination "profedechess93 won on time"]

1. e4 {[%clk 0:03:00.9]} 1... e6 {[%clk 0:02:59.7]} 2. d4 {[%clk 0:03:00.1]}
2... d5 {[%clk 0:03:00.2]} 3. Bd3 {[%clk 0:03:00.5]} 3... dxe4 {[%clk
0:03:00.2]} 4. Bxe4 {[%clk 0:03:00.7]} 4... Nf6 {[%clk 0:03:01.1]} 5. Bf3 {[%clk
0:03:00.3]} 5... Nbd7 {[%clk 0:03:02]} 6. Ne2 {[%clk 0:03:00.4]} 6... e5 {[%clk
0:03:02.4]} 7. Ng3 {[%clk 0:02:45.5]} 7... exd4 {[%clk 0:02:57.8]} 8. O-O {[%clk
0:02:43.1]} 8... Be7 {[%clk 0:02:57.7]} 9. Qxd4 {[%clk 0:02:42.6]} 9... O-O
{[%clk 0:02:57]} 10. Nc3 {[%clk 0:02:29.2]} 10... Bc5 {[%clk 0:02:53.8]} 11. Qh4
{[%clk 0:02:26.8]} 11... Ne5 {[%clk 0:02:53.5]} 12. Be2 {[%clk 0:02:13.4]} 12...
Ng6 {[%clk 0:02:45.6]} 13. Qc4 {[%clk 0:02:13.5]} 13... Bb6 {[%clk 0:02:34.6]}
14. Bg5 {[%clk 0:02:09.8]} 14... Be6 {[%clk 0:02:30.4]} 15. Qa4 {[%clk
0:02:02.8]} 15... h6 {[%clk 0:02:19]} 16. Rad1 {[%clk 0:01:58.9]} 16... Qe7
{[%clk 0:02:19.2]} 17. Bc1 {[%clk 0:01:43.8]} 17... Rfd8 {[%clk 0:02:15.4]} 18.
Bf3 {[%clk 0:01:41]} 18... c6 {[%clk 0:02:13.1]} 19. Nce4 {[%clk 0:01:22.3]}
19... Nd5 {[%clk 0:02:09.4]} 20. c4 {[%clk 0:01:12.3]} 20... Ndf4 {[%clk
0:02:06.8]} 21. c5 {[%clk 0:01:09.2]} 21... Bc7 {[%clk 0:02:06.3]} 22. Nd6
{[%clk 0:01:02.1]} 22... Nd5 {[%clk 0:01:18.2]} 23. Nxb7 {[%clk 0:00:57.3]}
23... Rdc8 {[%clk 0:01:16.4]} 24. Rfe1 {[%clk 0:00:51.8]} 24... Bxg3 {[%clk
0:01:14.8]} 25. Na5 {[%clk 0:00:42.8]} 25... Bc7 {[%clk 0:01:08.1]} 26. Nxc6
{[%clk 0:00:42.9]} 26... Qxc5 {[%clk 0:01:06.6]} 27. b4 {[%clk 0:00:28.2]} 27...
Qd6 {[%clk 0:00:58.4]} 28. g3 {[%clk 0:00:27.4]} 28... Nc3 {[%clk 0:00:54.8]}
29. Rxd6 {[%clk 0:00:18.8]} 29... Nxa4 {[%clk 0:00:55.1]} 30. Rdxe6 {[%clk
0:00:16.6]} 30... fxe6 {[%clk 0:00:53.7]} 31. Rxe6 {[%clk 0:00:17.1]} 31... Nf8
{[%clk 0:00:47.8]} 32. Ne7+ {[%clk 0:00:16.6]} 32... Kf7 {[%clk 0:00:47.1]} 33.
Ra6 {[%clk 0:00:09.5]} 33... Kxe7 {[%clk 0:00:43.3]} 34. Bxa8 {[%clk 0:00:09.5]}
34... Rxa8 {[%clk 0:00:42.4]} 35. Rxa4 {[%clk 0:00:09.6]} 35... Bb6 {[%clk
0:00:42.7]} 36. b5 {[%clk 0:00:09.1]} 36... Ne6 {[%clk 0:00:41.7]} 37. Re4
{[%clk 0:00:09.1]} 37... Kd7 {[%clk 0:00:41.3]} 38. a4 {[%clk 0:00:08.9]} 38...
Rc8 {[%clk 0:00:41.1]} 39. Bd2 {[%clk 0:00:08.8]} 39... Rc2 {[%clk 0:00:40.3]}
40. Be1 {[%clk 0:00:09.3]} 40... Nc5 {[%clk 0:00:39.2]} 41. Rd4+ {[%clk
0:00:08.8]} 41... Ke6 {[%clk 0:00:39.3]} 42. Rg4 {[%clk 0:00:06.7]} 42... Nd3
{[%clk 0:00:36.6]} 43. Kf1 {[%clk 0:00:02.3]} 43... g5 {[%clk 0:00:32.1]} 44.
Re4+ {[%clk 0:00:02.5]} 44... Kd5 {[%clk 0:00:30.5]} 45. Re8 {[%clk 0:00:02.9]}
45... Rc1 {[%clk 0:00:22.5]} 46. Re7 {[%clk 0:00:03.3]} 46... Ba5 {[%clk
0:00:21.3]} 47. Rd7+ {[%clk 0:00:03.7]} 47... Ke4 {[%clk 0:00:21.5]} 48. Re7+
{[%clk 0:00:03.9]} 48... Kf5 {[%clk 0:00:21.7]} 0-1